[Event "Titled Tuesday Blitz January 17 Late 2023"]
[White "Kuznecovs, Nikita"]
[Black "Pace, Christopher"]
[WhiteFideId "11604557"]
[BlackFideId "2610167"]
[WhiteElo "2287"]
[BlackElo "2053"]
[Result "1-0"]
[Round "04"]
[TimeControl "180+2"]
[Date "2023.01.17"]
[WhiteClock "0:00:22"]
[BlackClock "0:00:34"]

1. Nf3 {[%clk 0:02:57]}  Nf6 {[%clk 0:02:59]} 2. g3 {[%clk 0:02:51]}  g6 {[%clk 0:02:59]} 3. Bg2 {[%clk 0:02:51]}  Bg7 {[%clk 0:03:00]} 4. c4 {[%clk 0:02:51]}  O-O {[%clk 0:03:01]} 5. O-O {[%clk 0:02:50]}  c6 {[%clk 0:03:01]} 6. d4 {[%clk 0:02:47]}  d5 {[%clk 0:03:02]} 7. b3 {[%clk 0:02:48]}  a5 {[%clk 0:02:54]} 8. Nc3 {[%clk 0:02:36]}  Ne4 {[%clk 0:02:49]} 9. Bb2 {[%clk 0:02:32]}  Nxc3 {[%clk 0:02:48]} 10. Bxc3 {[%clk 0:02:32]}  a4 {[%clk 0:02:49]} 11. Ne5 {[%clk 0:02:11]}  Be6 {[%clk 0:02:10]} 12. bxa4 {[%clk 0:01:35]}  Nd7 {[%clk 0:01:54]} 13. Rb1 {[%clk 0:01:27]}  Nxe5 {[%clk 0:01:49]} 14. dxe5 {[%clk 0:01:27]}  Qd7 {[%clk 0:01:49]} 15. c5 {[%clk 0:01:18]}  Qc7 {[%clk 0:01:41]} 16. Qd4 {[%clk 0:01:15]}  Ra7 {[%clk 0:01:37]} 17. a5 {[%clk 0:01:12]}  f6 {[%clk 0:01:34]} 18. f4 {[%clk 0:01:12]}  Bg4 {[%clk 0:01:11]} 19. Rb2 {[%clk 0:01:05]}  fxe5 {[%clk 0:01:06]} 20. fxe5 {[%clk 0:01:05]}  Rxf1+ {[%clk 0:01:07]} 21. Bxf1 {[%clk 0:01:06]}  Bf5 {[%clk 0:00:39]} 22. Bg2 {[%clk 0:00:30]}  Bh6 {[%clk 0:00:34]} 23. e6 {[%clk 0:00:22]} 1-0


[Site "https://www.chess.com"]

[Event "Titled Tuesday Blitz January 17 Late 2023"]
[White "Suvorov, Luca"]
[Black "Balague Camps, Marc"]
[WhiteFideId "12977071"]
[BlackFideId "2297914"]
[WhiteElo "2310"]
[BlackElo "2190"]
[Result "1/2-1/2"]
[Round "04"]
[TimeControl "180+2"]
[Date "2023.01.17"]
[WhiteClock "0:00:25"]
[BlackClock "0:01:28"]

1. c4 {[%clk 0:02:54]}  Nf6 {[%clk 0:02:59]} 2. Nc3 {[%clk 0:02:52]}  e6 {[%clk 0:03:00]} 3. e4 {[%clk 0:02:48]}  d6 {[%clk 0:03:00]} 4. d4 {[%clk 0:02:48]}  e5 {[%clk 0:02:58]} 5. Nf3 {[%clk 0:02:43]}  Nbd7 {[%clk 0:02:57]} 6. h3 {[%clk 0:02:37]}  c6 {[%clk 0:02:56]} 7. Be3 {[%clk 0:02:36]}  Qc7 {[%clk 0:02:56]} 8. Be2 {[%clk 0:02:30]}  g6 {[%clk 0:02:54]} 9. O-O {[%clk 0:02:30]}  Bg7 {[%clk 0:02:55]} 10. Qd2 {[%clk 0:02:30]}  h6 {[%clk 0:02:54]} 11. Rad1 {[%clk 0:02:29]}  a5 {[%clk 0:02:50]} 12. c5 {[%clk 0:02:23]}  exd4 {[%clk 0:02:46]} 13. Nxd4 {[%clk 0:02:12]}  Nxc5 {[%clk 0:02:39]} 14. Ndb5 {[%clk 0:02:09]}  cxb5 {[%clk 0:02:38]} 15. Nxb5 {[%clk 0:02:10]}  Qc6 {[%clk 0:02:25]} 16. Nxd6+ {[%clk 0:02:05]}  Kf8 {[%clk 0:02:26]} 17. Bb5 {[%clk 0:02:03]}  Nfxe4 {[%clk 0:02:22]} 18. Bxc6 {[%clk 0:02:01]}  Nxd2 {[%clk 0:02:21]} 19. Rxd2 {[%clk 0:01:56]}  bxc6 {[%clk 0:02:15]} 20. Nxc8 {[%clk 0:01:45]}  Rxc8 {[%clk 0:02:12]} 21. Bxc5+ {[%clk 0:01:45]}  Kg8 {[%clk 0:02:13]} 22. b3 {[%clk 0:01:39]}  Bc3 {[%clk 0:02:11]} 23. Rd3 {[%clk 0:01:36]}  Be5 {[%clk 0:02:10]} 24. Re1 {[%clk 0:01:35]}  Bf6 {[%clk 0:02:06]} 25. Rf3 {[%clk 0:01:31]}  Kg7 {[%clk 0:02:04]} 26. Rxf6 {[%clk 0:01:27]}  Kxf6 {[%clk 0:02:05]} 27. Bd4+ {[%clk 0:01:22]}  Kg5 {[%clk 0:02:06]} 28. Bxh8 {[%clk 0:01:09]}  Rxh8 {[%clk 0:02:05]} 29. Re5+ {[%clk 0:01:10]}  Kf4 {[%clk 0:02:05]} 30. Rxa5 {[%clk 0:01:11]}  Rd8 {[%clk 0:02:05]} 31. Ra4+ {[%clk 0:01:08]}  Ke5 {[%clk 0:02:04]} 32. Kh2 {[%clk 0:01:06]}  f5 {[%clk 0:02:02]} 33. Kg3 {[%clk 0:01:05]}  g5 {[%clk 0:02:02]} 34. h4 {[%clk 0:01:04]}  Rd2 {[%clk 0:02:01]} 35. hxg5 {[%clk 0:01:03]}  hxg5 {[%clk 0:02:01]} 36. Ra5+ {[%clk 0:01:01]}  Ke6 {[%clk 0:01:57]} 37. Rc5 {[%clk 0:01:00]}  Rxa2 {[%clk 0:01:54]} 38. Rxc6+ {[%clk 0:01:00]}  Kd5 {[%clk 0:01:54]} 39. Rg6 {[%clk 0:00:58]}  g4 {[%clk 0:01:54]} 40. Rf6 {[%clk 0:00:51]}  Ke5 {[%clk 0:01:54]} 41. Rb6 {[%clk 0:00:50]}  f4+ {[%clk 0:01:53]} 42. Kxg4 {[%clk 0:00:49]}  Rxf2 {[%clk 0:01:54]} 43. Kh3 {[%clk 0:00:47]}  f3 {[%clk 0:01:50]} 44. g4 {[%clk 0:00:47]}  Rg2 {[%clk 0:01:49]} 45. Rb5+ {[%clk 0:00:44]}  Ke4 {[%clk 0:01:46]} 46. Rf5 {[%clk 0:00:42]}  Rb2 {[%clk 0:01:46]} 47. Rf8 {[%clk 0:00:29]}  Rxb3 {[%clk 0:01:45]} 48. g5 {[%clk 0:00:29]}  Rb1 {[%clk 0:01:35]} 49. Kh2 {[%clk 0:00:26]}  Rb5 {[%clk 0:01:33]} 50. Kg3 {[%clk 0:00:23]}  Rxg5+ {[%clk 0:01:32]} 51. Kf2 {[%clk 0:00:23]}  Rg2+ {[%clk 0:01:32]} 52. Kf1 {[%clk 0:00:23]}  Ra2 {[%clk 0:01:28]} 53. Re8+ {[%clk 0:00:23]}  Kf5 {[%clk 0:01:28]} 54. Rf8+ {[%clk 0:00:22]}  Kg4 {[%clk 0:01:28]} 55. Rg8+ {[%clk 0:00:22]}  Kf4 {[%clk 0:01:28]} 56. Rf8+ {[%clk 0:00:22]}  Ke3 {[%clk 0:01:29]} 57. Re8+ {[%clk 0:00:23]}  Kd2 {[%clk 0:01:29]} 58. Rd8+ {[%clk 0:00:23]}  Ke3 {[%clk 0:01:28]} 59. Re8+ {[%clk 0:00:24]}  Kf4 {[%clk 0:01:28]} 60. Rf8+ {[%clk 0:00:24]}  Kg3 {[%clk 0:01:28]} 61. Rg8+ {[%clk 0:00:25]} 1/2-1/2


[Site "https://www.chess.com"]

[Event "Titled Tuesday Blitz January 17 Late 2023"]
[White "Aguilar, Juan"]
[Black "Slovineanu, Viacheslav"]
[WhiteFideId "3800091"]
[BlackFideId "13900510"]
[WhiteElo "2254"]
[BlackElo "2412"]
[Result "0-1"]
[Round "04"]
[TimeControl "180+2"]
[Date "2023.01.17"]
[WhiteClock "0:00:03"]
[BlackClock "0:00:08"]

1. g3 {[%clk 0:03:00]}  d5 {[%clk 0:02:59]} 2. Bg2 {[%clk 0:03:00]}  e5 {[%clk 0:02:58]} 3. d3 {[%clk 0:03:00]}  Nf6 {[%clk 0:02:55]} 4. Nf3 {[%clk 0:03:00]}  Nbd7 {[%clk 0:02:54]} 5. O-O {[%clk 0:03:01]}  Bd6 {[%clk 0:02:52]} 6. Nbd2 {[%clk 0:03:01]}  O-O {[%clk 0:02:52]} 7. e4 {[%clk 0:02:59]}  c6 {[%clk 0:02:52]} 8. c3 {[%clk 0:02:57]}  Re8 {[%clk 0:02:51]} 9. Re1 {[%clk 0:02:56]}  a5 {[%clk 0:02:49]} 10. a4 {[%clk 0:02:56]}  Qc7 {[%clk 0:02:48]} 11. Qc2 {[%clk 0:02:56]}  b6 {[%clk 0:02:47]} 12. d4 {[%clk 0:02:48]}  dxe4 {[%clk 0:02:38]} 13. Nxe4 {[%clk 0:02:47]}  Nxe4 {[%clk 0:02:38]} 14. Qxe4 {[%clk 0:02:46]}  Nf6 {[%clk 0:02:35]} 15. Qh4 {[%clk 0:02:38]}  exd4 {[%clk 0:02:16]} 16. Bg5 {[%clk 0:02:28]}  Bd7 {[%clk 0:01:47]} 17. Bxf6 {[%clk 0:02:11]}  gxf6 {[%clk 0:01:47]} 18. Qxf6 {[%clk 0:02:07]}  dxc3 {[%clk 0:01:34]} 19. bxc3 {[%clk 0:02:05]}  Bf8 {[%clk 0:01:24]} 20. Ng5 {[%clk 0:01:51]}  Be6 {[%clk 0:00:55]} 21. Nxe6 {[%clk 0:01:24]}  fxe6 {[%clk 0:00:52]} 22. Bh3 {[%clk 0:01:14]}  Bg7 {[%clk 0:00:49]} 23. Bxe6+ {[%clk 0:01:14]}  Kh8 {[%clk 0:00:49]} 24. Qf3 {[%clk 0:00:49]}  Qd6 {[%clk 0:00:46]} 25. Rad1 {[%clk 0:00:47]}  Qc5 {[%clk 0:00:39]} 26. Rd7 {[%clk 0:00:42]}  Rf8 {[%clk 0:00:32]} 27. Qe4 {[%clk 0:00:30]}  Qxf2+ {[%clk 0:00:23]} 28. Kh1 {[%clk 0:00:30]}  Qf3+ {[%clk 0:00:23]} 29. Qxf3 {[%clk 0:00:25]}  Rxf3 {[%clk 0:00:24]} 30. c4 {[%clk 0:00:25]}  Re8 {[%clk 0:00:21]} 31. Kg2 {[%clk 0:00:24]}  Rf6 {[%clk 0:00:20]} 32. Rd6 {[%clk 0:00:22]}  c5 {[%clk 0:00:15]} 33. Rxb6 {[%clk 0:00:21]}  Rg6 {[%clk 0:00:14]} 34. Re2 {[%clk 0:00:18]}  Bd4 {[%clk 0:00:14]} 35. Rc6 {[%clk 0:00:13]}  Kg7 {[%clk 0:00:14]} 36. Rc7+ {[%clk 0:00:10]}  Kh6 {[%clk 0:00:14]} 37. Bg4 {[%clk 0:00:10]}  Rxe2+ {[%clk 0:00:13]} 38. Bxe2 {[%clk 0:00:11]}  Re6 {[%clk 0:00:13]} 39. Bf3 {[%clk 0:00:11]}  Re3 {[%clk 0:00:13]} 40. Rc6+ {[%clk 0:00:11]}  Kg5 {[%clk 0:00:13]} 41. h4+ {[%clk 0:00:11]}  Kf5 {[%clk 0:00:13]} 42. Bd5 {[%clk 0:00:09]}  Ra3 {[%clk 0:00:12]} 43. Be6+ {[%clk 0:00:07]}  Ke5 {[%clk 0:00:12]} 44. Bd5 {[%clk 0:00:06]}  Rxa4 {[%clk 0:00:11]} 45. Rc7 {[%clk 0:00:07]}  Ra2+ {[%clk 0:00:10]} 46. Kf3 {[%clk 0:00:07]}  Ra3+ {[%clk 0:00:10]} 47. Kg4 {[%clk 0:00:07]}  Bf2 {[%clk 0:00:10]} 48. Rxh7 {[%clk 0:00:05]}  Rxg3+ {[%clk 0:00:09]} 49. Kh5 {[%clk 0:00:06]}  a4 {[%clk 0:00:09]} 50. Re7+ {[%clk 0:00:05]}  Kd4 {[%clk 0:00:08]} 51. Re4+ {[%clk 0:00:05]}  Kc3 {[%clk 0:00:09]} 52. Re2 {[%clk 0:00:04]}  Bd4 {[%clk 0:00:07]} 53. Kh6 {[%clk 0:00:03]}  a3 {[%clk 0:00:07]} 54. h5 {[%clk 0:00:04]}  Kb3 {[%clk 0:00:08]} 55. Kh7 {[%clk 0:00:03]}  a2 {[%clk 0:00:08]} 56. Rxa2 {[%clk 0:00:03]}  Kxa2 {[%clk 0:00:09]} 57. h6 {[%clk 0:00:03]}  Kb3 {[%clk 0:00:09]} 58. Be4 {[%clk 0:00:02]}  Kxc4 {[%clk 0:00:08]} 59. Bg6 {[%clk 0:00:02]}  Rxg6 {[%clk 0:00:08]} 60. Kxg6 {[%clk 0:00:03]}  Kd3 {[%clk 0:00:08]} 0-1


[Site "https://www.chess.com"]

[Event "Titled Tuesday Blitz January 17 Late 2023"]
[White "Jenkins, Drake"]
[Black "Kaplan, Avi Harrison"]
[WhiteFideId "2022397"]
[BlackFideId "30934559"]
[WhiteElo "2130"]
[BlackElo "2146"]
[Result "1-0"]
[Round "04"]
[TimeControl "180+2"]
[Date "2023.01.17"]
[WhiteClock "0:00:40"]
[BlackClock "0:00:04"]

1. Nf3 {[%clk 0:03:00]}  c5 {[%clk 0:02:53]} 2. c4 {[%clk 0:03:00]}  Nc6 {[%clk 0:02:54]} 3. d4 {[%clk 0:02:59]}  cxd4 {[%clk 0:02:53]} 4. Nxd4 {[%clk 0:03:00]}  g6 {[%clk 0:02:52]} 5. g3 {[%clk 0:02:58]}  Bg7 {[%clk 0:02:52]} 6. Nc2 {[%clk 0:02:58]}  Nf6 {[%clk 0:02:52]} 7. Nc3 {[%clk 0:02:57]}  O-O {[%clk 0:02:53]} 8. Bg2 {[%clk 0:02:58]}  d6 {[%clk 0:02:53]} 9. O-O {[%clk 0:02:58]}  Bd7 {[%clk 0:02:53]} 10. b3 {[%clk 0:02:59]}  a6 {[%clk 0:02:53]} 11. Bb2 {[%clk 0:02:58]}  Rc8 {[%clk 0:02:54]} 12. Qd2 {[%clk 0:02:57]}  Qc7 {[%clk 0:02:49]} 13. Ne3 {[%clk 0:02:55]}  Rfd8 {[%clk 0:02:25]} 14. Ncd5 {[%clk 0:02:54]}  Qb8 {[%clk 0:02:22]} 15. Nxf6+ {[%clk 0:02:53]}  Bxf6 {[%clk 0:02:20]} 16. Bxf6 {[%clk 0:02:52]}  exf6 {[%clk 0:02:21]} 17. Nd5 {[%clk 0:02:42]}  Kg7 {[%clk 0:02:20]} 18. Qf4 {[%clk 0:02:31]}  f5 {[%clk 0:02:13]} 19. Nb6 {[%clk 0:02:29]}  Ne5 {[%clk 0:02:06]} 20. Nxc8 {[%clk 0:02:26]}  Qxc8 {[%clk 0:02:07]} 21. Rfd1 {[%clk 0:02:17]}  Bc6 {[%clk 0:02:03]} 22. Qd4 {[%clk 0:02:08]}  Bxg2 {[%clk 0:01:58]} 23. Kxg2 {[%clk 0:02:09]}  Qc6+ {[%clk 0:01:58]} 24. Qd5 {[%clk 0:02:09]}  Qe8 {[%clk 0:01:47]} 25. h3 {[%clk 0:02:06]}  Nc6 {[%clk 0:01:32]} 26. Rd2 {[%clk 0:01:58]}  Qe7 {[%clk 0:01:21]} 27. Rad1 {[%clk 0:01:58]}  Kg8 {[%clk 0:01:05]} 28. Qf3 {[%clk 0:01:53]}  Ne5 {[%clk 0:01:03]} 29. Qf4 {[%clk 0:01:46]}  Qc7 {[%clk 0:00:55]} 30. Rd5 {[%clk 0:01:34]}  Qc6 {[%clk 0:00:31]} 31. Kg1 {[%clk 0:01:34]}  Qc7 {[%clk 0:00:30]} 32. c5 {[%clk 0:01:27]}  Nd7 {[%clk 0:00:21]} 33. Qxd6 {[%clk 0:01:07]}  Qc8 {[%clk 0:00:03]} 34. Qe7 {[%clk 0:01:04]}  Re8 {[%clk 0:00:01]} 35. Qxd7 {[%clk 0:01:03]}  Qxd7 {[%clk 0:00:02]} 36. Rxd7 {[%clk 0:01:02]}  Rxe2 {[%clk 0:00:03]} 37. Rxb7 {[%clk 0:00:59]}  Rc2 {[%clk 0:00:03]} 38. Rb6 {[%clk 0:00:50]}  Rxc5 {[%clk 0:00:02]} 39. Rxa6 {[%clk 0:00:50]}  Rc2 {[%clk 0:00:03]} 40. Rb1 {[%clk 0:00:50]}  Kg7 {[%clk 0:00:03]} 41. b4 {[%clk 0:00:50]}  f4 {[%clk 0:00:03]} 42. gxf4 {[%clk 0:00:49]}  f5 {[%clk 0:00:03]} 43. b5 {[%clk 0:00:49]}  Kh6 {[%clk 0:00:04]} 44. b6 {[%clk 0:00:48]}  Rc8 {[%clk 0:00:03]} 45. b7 {[%clk 0:00:48]}  Re8 {[%clk 0:00:02]} 46. Ra8 {[%clk 0:00:47]}  Re7 {[%clk 0:00:02]} 47. b8=Q {[%clk 0:00:47]}  Kh5 {[%clk 0:00:03]} 48. Qe5 {[%clk 0:00:44]}  Rxe5 {[%clk 0:00:01]} 49. fxe5 {[%clk 0:00:44]}  Kh4 {[%clk 0:00:02]} 50. e6 {[%clk 0:00:43]}  f4 {[%clk 0:00:03]} 51. Ra3 {[%clk 0:00:42]}  h5 {[%clk 0:00:03]} 52. e7 {[%clk 0:00:42]}  f3 {[%clk 0:00:04]} 53. Rxf3 {[%clk 0:00:40]}  g5 {[%clk 0:00:03]} 54. e8=Q {[%clk 0:00:40]}  g4 {[%clk 0:00:04]} 55. Qe7# {[%clk 0:00:40]} 1-0


[Site "https://www.chess.com"]

[Event "Titled Tuesday Blitz January 17 Late 2023"]
[White "Almedina Ortiz, Edgardo J."]
[Black "Rojas Salas, Steven"]
[WhiteFideId "3100197"]
[BlackFideId "3819434"]
[WhiteElo "2156"]
[BlackElo "2217"]
[Result "0-1"]
[Round "04"]
[TimeControl "180+2"]
[Date "2023.01.17"]
[WhiteClock "0:00:01"]
[BlackClock "0:00:58"]

1. Nf3 {[%clk 0:02:59]}  d5 {[%clk 0:03:00]} 2. e3 {[%clk 0:02:58]}  c5 {[%clk 0:02:59]} 3. b3 {[%clk 0:02:57]}  g6 {[%clk 0:02:57]} 4. Bb2 {[%clk 0:02:56]}  Nf6 {[%clk 0:02:58]} 5. Bb5+ {[%clk 0:02:41]}  Nbd7 {[%clk 0:02:57]} 6. Ne5 {[%clk 0:02:38]}  Bg7 {[%clk 0:02:56]} 7. Bxd7+ {[%clk 0:02:24]}  Bxd7 {[%clk 0:02:29]} 8. O-O {[%clk 0:02:23]}  O-O {[%clk 0:02:29]} 9. f4 {[%clk 0:02:21]}  Bb5 {[%clk 0:02:14]} 10. d3 {[%clk 0:02:20]}  d4 {[%clk 0:02:14]} 11. a4 {[%clk 0:02:09]}  Bc6 {[%clk 0:02:09]} 12. Nxc6 {[%clk 0:02:07]}  bxc6 {[%clk 0:02:09]} 13. e4 {[%clk 0:02:07]}  e6 {[%clk 0:02:06]} 14. Nd2 {[%clk 0:02:05]}  h5 {[%clk 0:02:03]} 15. Nc4 {[%clk 0:01:59]}  Nd7 {[%clk 0:02:01]} 16. Ba3 {[%clk 0:01:46]}  Qe7 {[%clk 0:01:59]} 17. Qd2 {[%clk 0:01:31]}  Kh7 {[%clk 0:01:59]} 18. Rae1 {[%clk 0:01:22]}  Bh6 {[%clk 0:01:54]} 19. Qa5 {[%clk 0:01:18]}  Rfc8 {[%clk 0:01:31]} 20. f5 {[%clk 0:01:17]}  Bg7 {[%clk 0:01:28]} 21. fxg6+ {[%clk 0:00:59]}  fxg6 {[%clk 0:01:29]} 22. Rf3 {[%clk 0:00:57]}  Qh4 {[%clk 0:01:08]} 23. Ref1 {[%clk 0:00:55]}  Rf8 {[%clk 0:01:09]} 24. Qc7 {[%clk 0:00:29]}  Rxf3 {[%clk 0:01:07]} 25. Rxf3 {[%clk 0:00:28]}  Rf8 {[%clk 0:01:04]} 26. Rxf8 {[%clk 0:00:22]}  Nxf8 {[%clk 0:01:05]} 27. Qg3 {[%clk 0:00:17]}  Qe7 {[%clk 0:01:06]} 28. Qd6 {[%clk 0:00:14]}  Qg5 {[%clk 0:01:06]} 29. h3 {[%clk 0:00:10]}  Qh4 {[%clk 0:01:02]} 30. Qxc5 {[%clk 0:00:07]}  Qe1+ {[%clk 0:01:02]} 31. Kh2 {[%clk 0:00:07]}  h4 {[%clk 0:01:03]} 32. Qd6 {[%clk 0:00:05]}  Qf2 {[%clk 0:01:02]} 33. Qc7 {[%clk 0:00:02]}  Kg8 {[%clk 0:01:01]} 34. Bd6 {[%clk 0:00:01]}  Nh7 {[%clk 0:00:58]} 0-1


[Site "https://www.chess.com"]

[Event "Titled Tuesday Blitz January 17 Late 2023"]
[White "Ardila, Oscar Humberto"]
[Black "Novikov, Evgenij"]
[WhiteFideId "4404742"]
[BlackFideId "4125380"]
[WhiteElo "1982"]
[BlackElo "2276"]
[Result "0-1"]
[Round "04"]
[TimeControl "180+2"]
[Date "2023.01.17"]
[WhiteClock "0:00:24"]
[BlackClock "0:00:31"]

1. d4 {[%clk 0:02:58]}  Nf6 {[%clk 0:02:58]} 2. c4 {[%clk 0:02:58]}  c5 {[%clk 0:02:58]} 3. d5 {[%clk 0:02:58]}  b5 {[%clk 0:02:58]} 4. Qc2 {[%clk 0:02:58]}  d6 {[%clk 0:02:56]} 5. e4 {[%clk 0:02:58]}  g6 {[%clk 0:02:56]} 6. cxb5 {[%clk 0:02:57]}  Bg7 {[%clk 0:02:56]} 7. Nc3 {[%clk 0:02:57]}  O-O {[%clk 0:02:55]} 8. Nf3 {[%clk 0:02:57]}  a6 {[%clk 0:02:53]} 9. a4 {[%clk 0:02:56]}  e6 {[%clk 0:02:52]} 10. dxe6 {[%clk 0:02:55]}  fxe6 {[%clk 0:02:50]} 11. Be2 {[%clk 0:02:53]}  axb5 {[%clk 0:02:48]} 12. Bxb5 {[%clk 0:02:54]}  d5 {[%clk 0:02:47]} 13. e5 {[%clk 0:02:51]}  Nh5 {[%clk 0:02:43]} 14. O-O {[%clk 0:02:48]}  Rxf3 {[%clk 0:02:06]} 15. gxf3 {[%clk 0:02:47]}  Bxe5 {[%clk 0:01:55]} 16. Ne2 {[%clk 0:02:34]}  Qh4 {[%clk 0:01:47]} 17. Ng3 {[%clk 0:02:34]}  Nf4 {[%clk 0:01:34]} 18. Bxf4 {[%clk 0:02:31]}  Qxf4 {[%clk 0:01:27]} 19. Rfe1 {[%clk 0:02:27]}  c4 {[%clk 0:01:20]} 20. Qc1 {[%clk 0:02:26]}  Qxc1 {[%clk 0:01:17]} 21. Raxc1 {[%clk 0:02:26]}  Bxb2 {[%clk 0:01:18]} 22. Rc2 {[%clk 0:02:17]}  Bf6 {[%clk 0:01:13]} 23. f4 {[%clk 0:02:09]}  Kf7 {[%clk 0:01:11]} 24. Ne2 {[%clk 0:01:51]}  Na6 {[%clk 0:01:10]} 25. Bxa6 {[%clk 0:01:34]}  Rxa6 {[%clk 0:01:11]} 26. Ra2 {[%clk 0:01:33]}  Bd7 {[%clk 0:00:55]} 27. a5 {[%clk 0:01:31]}  d4 {[%clk 0:00:54]} 28. Rb1 {[%clk 0:01:27]}  d3 {[%clk 0:00:53]} 29. Nc1 {[%clk 0:01:26]}  Bd4 {[%clk 0:00:48]} 30. Rb7 {[%clk 0:01:25]}  Ke8 {[%clk 0:00:47]} 31. Kf1 {[%clk 0:01:19]}  Rxa5 {[%clk 0:00:37]} 32. Rxa5 {[%clk 0:01:14]}  d2 {[%clk 0:00:37]} 33. Ra8+ {[%clk 0:01:14]}  Ke7 {[%clk 0:00:37]} 34. Ne2 {[%clk 0:00:23]}  d1=Q+ {[%clk 0:00:33]} 35. Kg2 {[%clk 0:00:24]}  Qxe2 {[%clk 0:00:31]} 0-1


[Site "https://www.chess.com"]

[Event "Titled Tuesday Blitz January 17 Late 2023"]
[White "Hajiyev, Kanan"]
[Black "Fajdetic, Hrvoje"]
[WhiteFideId "13404148"]
[BlackFideId "14501945"]
[WhiteElo "2197"]
[BlackElo "2151"]
[Result "1-0"]
[Round "04"]
[TimeControl "180+2"]
[Date "2023.01.17"]
[WhiteClock "0:00:45"]
[BlackClock "0:00:19"]

1. d4 {[%clk 0:03:00]}  e6 {[%clk 0:02:56]} 2. c4 {[%clk 0:03:00]}  f5 {[%clk 0:02:56]} 3. Nf3 {[%clk 0:02:54]}  Nf6 {[%clk 0:02:56]} 4. g3 {[%clk 0:02:54]}  Be7 {[%clk 0:02:53]} 5. Bg2 {[%clk 0:02:55]}  O-O {[%clk 0:02:54]} 6. O-O {[%clk 0:02:55]}  d6 {[%clk 0:02:53]} 7. b3 {[%clk 0:02:55]}  Qe8 {[%clk 0:02:52]} 8. Bb2 {[%clk 0:02:53]}  Nbd7 {[%clk 0:02:50]} 9. a4 {[%clk 0:02:43]}  Ne4 {[%clk 0:02:48]} 10. Nbd2 {[%clk 0:02:42]}  Ndf6 {[%clk 0:02:47]} 11. Nxe4 {[%clk 0:02:39]}  Nxe4 {[%clk 0:02:48]} 12. Nd2 {[%clk 0:02:37]}  Nxd2 {[%clk 0:02:47]} 13. Qxd2 {[%clk 0:02:38]}  Bf6 {[%clk 0:02:44]} 14. a5 {[%clk 0:02:34]}  a6 {[%clk 0:02:42]} 15. e4 {[%clk 0:02:21]}  e5 {[%clk 0:02:31]} 16. dxe5 {[%clk 0:02:12]}  Bxe5 {[%clk 0:02:29]} 17. Bxe5 {[%clk 0:02:07]}  Qxe5 {[%clk 0:02:27]} 18. exf5 {[%clk 0:02:07]}  Qxf5 {[%clk 0:02:11]} 19. Qd5+ {[%clk 0:02:02]}  Qxd5 {[%clk 0:02:04]} 20. Bxd5+ {[%clk 0:02:03]}  Kh8 {[%clk 0:02:04]} 21. Rfe1 {[%clk 0:02:04]}  c6 {[%clk 0:02:01]} 22. Bg2 {[%clk 0:02:04]}  Bf5 {[%clk 0:01:59]} 23. Re7 {[%clk 0:02:02]}  Rab8 {[%clk 0:01:55]} 24. Rd1 {[%clk 0:01:52]}  Rfd8 {[%clk 0:01:43]} 25. b4 {[%clk 0:01:49]}  Bc2 {[%clk 0:01:33]} 26. Rde1 {[%clk 0:01:39]}  Bb3 {[%clk 0:01:31]} 27. R1e4 {[%clk 0:01:25]}  d5 {[%clk 0:01:29]} 28. cxd5 {[%clk 0:01:20]}  Bxd5 {[%clk 0:01:24]} 29. Rg4 {[%clk 0:01:20]}  Bxg2 {[%clk 0:01:15]} 30. Kxg2 {[%clk 0:01:18]}  Rg8 {[%clk 0:01:05]} 31. h4 {[%clk 0:01:12]}  b6 {[%clk 0:01:03]} 32. Ra7 {[%clk 0:01:04]}  bxa5 {[%clk 0:00:41]} 33. bxa5 {[%clk 0:01:02]}  Ra8 {[%clk 0:00:40]} 34. Rgxg7 {[%clk 0:00:57]}  Rxg7 {[%clk 0:00:33]} 35. Rxa8+ {[%clk 0:00:57]}  Rg8 {[%clk 0:00:32]} 36. Rxa6 {[%clk 0:00:56]}  Rc8 {[%clk 0:00:30]} 37. Rb6 {[%clk 0:00:54]}  Kg7 {[%clk 0:00:31]} 38. a6 {[%clk 0:00:54]}  Kf7 {[%clk 0:00:27]} 39. Rb7+ {[%clk 0:00:53]}  Kg6 {[%clk 0:00:26]} 40. a7 {[%clk 0:00:53]}  Ra8 {[%clk 0:00:26]} 41. Rc7 {[%clk 0:00:52]}  Kf5 {[%clk 0:00:24]} 42. Rxh7 {[%clk 0:00:50]}  Ke6 {[%clk 0:00:22]} 43. Kf3 {[%clk 0:00:46]}  c5 {[%clk 0:00:20]} 44. Ke4 {[%clk 0:00:46]}  Kd6 {[%clk 0:00:20]} 45. Rh6+ {[%clk 0:00:44]}  Kc7 {[%clk 0:00:19]} 46. Kd5 {[%clk 0:00:45]} 1-0


[Site "https://www.chess.com"]

[Event "Titled Tuesday Blitz January 17 Late 2023"]
[White "Mortazavi, Ali"]
[Black "Papp, Petra"]
[WhiteFideId "401323"]
[BlackFideId "739049"]
[WhiteElo "2333"]
[BlackElo "2343"]
[Result "1-0"]
[Round "04"]
[TimeControl "180+2"]
[Date "2023.01.17"]
[WhiteClock "0:00:51"]
[BlackClock "0:00:57"]

1. e4 {[%clk 0:03:00]}  c5 {[%clk 0:02:59]} 2. Nc3 {[%clk 0:03:00]}  Nc6 {[%clk 0:02:50]} 3. f4 {[%clk 0:03:00]}  e6 {[%clk 0:02:45]} 4. Nf3 {[%clk 0:03:01]}  Nge7 {[%clk 0:02:44]} 5. g3 {[%clk 0:02:34]}  g6 {[%clk 0:02:44]} 6. d4 {[%clk 0:02:34]}  cxd4 {[%clk 0:02:41]} 7. Nxd4 {[%clk 0:02:34]}  Bg7 {[%clk 0:02:41]} 8. Be3 {[%clk 0:02:23]}  O-O {[%clk 0:02:40]} 9. Qd2 {[%clk 0:02:21]}  Nxd4 {[%clk 0:02:31]} 10. Bxd4 {[%clk 0:02:21]}  Bxd4 {[%clk 0:02:29]} 11. Qxd4 {[%clk 0:02:21]}  Nc6 {[%clk 0:02:30]} 12. Qd6 {[%clk 0:02:15]}  Qe7 {[%clk 0:02:28]} 13. O-O-O {[%clk 0:02:11]}  a6 {[%clk 0:02:14]} 14. e5 {[%clk 0:02:07]}  Qxd6 {[%clk 0:02:11]} 15. Rxd6 {[%clk 0:02:07]}  Ne7 {[%clk 0:02:08]} 16. Bg2 {[%clk 0:02:01]}  Nf5 {[%clk 0:02:08]} 17. Rd3 {[%clk 0:01:57]}  Rb8 {[%clk 0:02:06]} 18. Ne4 {[%clk 0:01:51]}  Rd8 {[%clk 0:02:03]} 19. Rhd1 {[%clk 0:01:49]}  b5 {[%clk 0:01:58]} 20. Nf6+ {[%clk 0:01:43]}  Kg7 {[%clk 0:01:56]} 21. g4 {[%clk 0:01:39]}  Nh6 {[%clk 0:01:35]} 22. Rh3 {[%clk 0:01:25]}  Rb6 {[%clk 0:01:20]} 23. g5 {[%clk 0:01:21]}  Nf5 {[%clk 0:01:16]} 24. Rxh7+ {[%clk 0:01:21]}  Kf8 {[%clk 0:01:17]} 25. Be4 {[%clk 0:01:08]}  d5 {[%clk 0:01:12]} 26. Bxf5 {[%clk 0:01:06]}  exf5 {[%clk 0:01:02]} 27. Nxd5 {[%clk 0:00:53]}  Rb7 {[%clk 0:00:57]} 28. Rh8+ {[%clk 0:00:51]} 1-0


[Site "https://www.chess.com"]